[Event "Late-Titled-Tuesday-Blitz-February-06-2024"]
[Site "Chess.com"]
[Date "2024.02.06"]
[Round "1"]
[White "malakismayil"]
[Black "Kiborg95"]
[Result "0-1"]
[WhiteElo "2451"]
[BlackElo "2838"]
[TimeControl "180+1"]
[EndTime "14:06:54 PST"]
[Termination "Kiborg95 won on time"]

1. e4 {[%clk 0:03:00.9]} 1... d6 {[%clk 0:02:52.3]} 2. d4 {[%clk 0:03:00.6]}
2... Nf6 {[%clk 0:02:52.8]} 3. Nc3 {[%clk 0:03:01.3]} 3... Nbd7 {[%clk 0:02:51]}
4. Bg5 {[%clk 0:02:59.9]} 4... e5 {[%clk 0:02:50.5]} 5. Nf3 {[%clk 0:02:58.6]}
5... Be7 {[%clk 0:02:50.1]} 6. Bc4 {[%clk 0:02:57.4]} 6... c6 {[%clk 0:02:50.1]}
7. O-O {[%clk 0:02:55.9]} 7... b5 {[%clk 0:02:49.1]} 8. Bd3 {[%clk 0:02:55.8]}
8... O-O {[%clk 0:02:49.6]} 9. Re1 {[%clk 0:02:51.1]} 9... h6 {[%clk 0:02:47.6]}
10. Bh4 {[%clk 0:02:50.4]} 10... Bb7 {[%clk 0:02:47.8]} 11. a3 {[%clk
0:02:48.4]} 11... Re8 {[%clk 0:02:47.1]} 12. Bg3 {[%clk 0:02:46]} 12... Bf8
{[%clk 0:02:44]} 13. Qd2 {[%clk 0:02:37.7]} 13... a5 {[%clk 0:02:43.1]} 14. Bh4
{[%clk 0:02:11.9]} 14... g5 {[%clk 0:02:36.3]} 15. Bg3 {[%clk 0:02:08.2]} 15...
Nh5 {[%clk 0:02:34.9]} 16. dxe5 {[%clk 0:01:59.8]} 16... dxe5 {[%clk 0:02:33.6]}
17. h4 {[%clk 0:01:56.9]} 17... g4 {[%clk 0:02:11.4]} 18. Nh2 {[%clk 0:01:55.7]}
18... Ndf6 {[%clk 0:02:12]} 19. Qe2 {[%clk 0:01:42.7]} 19... Bc8 {[%clk
0:02:08.2]} 20. Rad1 {[%clk 0:01:40.7]} 20... Qb6 {[%clk 0:01:58.9]} 21. Kh1
{[%clk 0:01:32.9]} 21... Nf4 {[%clk 0:01:41.6]} 22. Qe3 {[%clk 0:01:22]} 22...
Qxe3 {[%clk 0:01:40.7]} 23. Rxe3 {[%clk 0:01:22.9]} 23... N6h5 {[%clk
0:01:39.1]} 24. Be2 {[%clk 0:01:13.6]} 24... Nxg3+ {[%clk 0:01:36.9]} 25. fxg3
{[%clk 0:01:11.7]} 25... Nxe2 {[%clk 0:01:37.1]} 26. Nxe2 {[%clk 0:01:09.1]}
26... Be6 {[%clk 0:01:36.6]} 27. Red3 {[%clk 0:00:42.2]} 27... h5 {[%clk
0:01:36.8]} 28. Nf1 {[%clk 0:00:41.5]} 28... Bc4 {[%clk 0:01:37.2]} 29. R3d2
{[%clk 0:00:41.2]} 29... Bh6 {[%clk 0:01:37.9]} 30. b3 {[%clk 0:00:34.1]} 30...
Bxd2 {[%clk 0:01:38]} 31. Rxd2 {[%clk 0:00:35]} 31... Be6 {[%clk 0:01:29.8]} 32.
Kg1 {[%clk 0:00:31.4]} 32... Red8 {[%clk 0:01:28.8]} 33. Kf2 {[%clk 0:00:31.6]}
33... Kf8 {[%clk 0:01:28.7]} 34. Ke3 {[%clk 0:00:31.6]} 34... Ke7 {[%clk
0:01:29.2]} 35. Nc3 {[%clk 0:00:31.3]} 35... f5 {[%clk 0:01:25.8]} 36. Rf2
{[%clk 0:00:29.2]} 36... Rf8 {[%clk 0:01:22]} 37. Nd2 {[%clk 0:00:27.5]} 37...
Rad8 {[%clk 0:01:21.6]} 38. a4 {[%clk 0:00:14.9]} 38... b4 {[%clk 0:01:12.7]}
39. Ne2 {[%clk 0:00:14.2]} 39... fxe4 {[%clk 0:01:10.5]} 40. Nxe4 {[%clk
0:00:07.2]} 40... Rxf2 {[%clk 0:01:10.6]} 41. Nxf2 {[%clk 0:00:08.1]} 41... Bf5
{[%clk 0:01:10.7]} 42. c3 {[%clk 0:00:05.2]} 42... c5 {[%clk 0:01:07.4]} 43. Ne4
{[%clk 0:00:02.3]} 43... Bxe4 {[%clk 0:01:05]} 44. Kxe4 {[%clk 0:00:03.2]} 44...
c4 {[%clk 0:01:05.6]} 45. cxb4 {[%clk 0:00:02.3]} 45... cxb3 {[%clk 0:01:05.8]}
46. bxa5 {[%clk 0:00:02.9]} 46... b2 {[%clk 0:01:06]} 47. Nc3 {[%clk 0:00:03.3]}
47... Rc8 {[%clk 0:01:06.4]} 0-1

[Event "Late-Titled-Tuesday-Blitz-February-06-2024"]
[Site "Chess.com"]
[Date "2024.02.06"]
[Round "1"]
[White "Dedic8"]
[Black "ural58"]
[Result "1-0"]
[WhiteElo "2894"]
[BlackElo "2473"]
[TimeControl "180+1"]
[EndTime "14:06:55 PST"]
[Termination "Dedic8 won by resignation"]

1. d4 {[%clk 0:03:00.9]} 1... d5 {[%clk 0:02:59.1]} 2. c4 {[%clk 0:03:01.3]}
2... e5 {[%clk 0:02:58.5]} 3. dxe5 {[%clk 0:02:59.1]} 3... d4 {[%clk 0:02:58.6]}
4. g3 {[%clk 0:02:55]} 4... Nc6 {[%clk 0:02:58]} 5. Nf3 {[%clk 0:02:52.5]} 5...
Nge7 {[%clk 0:02:57.7]} 6. Bg2 {[%clk 0:02:52.1]} 6... Ng6 {[%clk 0:02:58.2]} 7.
O-O {[%clk 0:02:44.4]} 7... Ngxe5 {[%clk 0:02:58]} 8. Nxe5 {[%clk 0:02:44.7]}
8... Nxe5 {[%clk 0:02:58]} 9. Nd2 {[%clk 0:02:34.9]} 9... Be7 {[%clk 0:02:49.5]}
10. b4 {[%clk 0:02:31.1]} 10... O-O {[%clk 0:02:40.7]} 11. a3 {[%clk 0:02:28.6]}
11... c5 {[%clk 0:02:39.2]} 12. bxc5 {[%clk 0:02:25.7]} 12... Nc6 {[%clk
0:02:18.3]} 13. Nb3 {[%clk 0:02:23.5]} 13... Bf6 {[%clk 0:02:17.1]} 14. Ra2
{[%clk 0:02:22.6]} 14... Be6 {[%clk 0:02:14.8]} 15. Qc2 {[%clk 0:02:16.3]} 15...
Qd7 {[%clk 0:02:08.7]} 16. Bf4 {[%clk 0:02:16.1]} 16... Bf5 {[%clk 0:02:00.9]}
17. Qc1 {[%clk 0:02:11.9]} 17... Rfe8 {[%clk 0:01:59.7]} 18. Rd1 {[%clk
0:02:10.8]} 18... Bg4 {[%clk 0:01:41]} 19. Bf3 {[%clk 0:02:11]} 19... Bxf3
{[%clk 0:01:40.3]} 20. exf3 {[%clk 0:02:11.9]} 20... Re6 {[%clk 0:01:27.8]} 21.
Kg2 {[%clk 0:02:11]} 21... Rae8 {[%clk 0:01:27.7]} 22. Rad2 {[%clk 0:02:09.9]}
22... h6 {[%clk 0:01:22.6]} 23. Qc2 {[%clk 0:02:07.2]} 23... Re1 {[%clk
0:01:03.9]} 24. Bd6 {[%clk 0:01:57.4]} 24... Rxd1 {[%clk 0:01:01.9]} 25. Rxd1
{[%clk 0:01:53.6]} 25... Qe6 {[%clk 0:00:56.5]} 26. Nc1 {[%clk 0:01:40.6]} 26...
Be7 {[%clk 0:00:51.6]} 27. Bxe7 {[%clk 0:01:36.4]} 27... Rxe7 {[%clk 0:00:51.6]}
28. Nb3 {[%clk 0:01:34.6]} 28... Rd7 {[%clk 0:00:48.3]} 29. Qe4 {[%clk
0:01:32.1]} 29... a5 {[%clk 0:00:36.7]} 30. a4 {[%clk 0:01:14.9]} 30... g6
{[%clk 0:00:32.5]} 31. Qxe6 {[%clk 0:01:12.6]} 31... fxe6 {[%clk 0:00:32.1]} 32.
f4 {[%clk 0:01:13.5]} 32... e5 {[%clk 0:00:11.7]} 33. fxe5 {[%clk 0:01:09.1]}
33... Nxe5 {[%clk 0:00:11.9]} 34. Nxa5 {[%clk 0:00:51.6]} 34... d3 {[%clk
0:00:12.1]} 35. f4 {[%clk 0:00:52.3]} 35... Ng4 {[%clk 0:00:10.6]} 36. Rd2
{[%clk 0:00:45.8]} 36... Ne3+ {[%clk 0:00:08.7]} 37. Kf2 {[%clk 0:00:46.4]}
37... Nc2 {[%clk 0:00:07.2]} 38. c6 {[%clk 0:00:44]} 38... bxc6 {[%clk
0:00:06.7]} 39. Nxc6 {[%clk 0:00:44.9]} 39... Nb4 {[%clk 0:00:06.6]} 40. Nxb4
{[%clk 0:00:42.6]} 1-0

[Event "Late-Titled-Tuesday-Blitz-February-06-2024"]
[Site "Chess.com"]
[Date "2024.02.06"]
[Round "1"]
[White "winniethepooh04"]
[Black "MolecularChemist"]
[Result "0-1"]
[WhiteElo "2508"]
[BlackElo "2957"]
[TimeControl "180+1"]
[EndTime "14:06:57 PST"]
[Termination "MolecularChemist won by resignation"]

1. d4 {[%clk 0:03:00.9]} 1... Nf6 {[%clk 0:02:56.2]} 2. Nf3 {[%clk 0:03:01.4]}
2... e6 {[%clk 0:02:55.9]} 3. Bf4 {[%clk 0:03:01.4]} 3... b6 {[%clk 0:02:47.4]}
4. e3 {[%clk 0:03:01.5]} 4... Bb7 {[%clk 0:02:47.9]} 5. Nbd2 {[%clk 0:02:58.9]}
5... d5 {[%clk 0:02:46.1]} 6. Bd3 {[%clk 0:02:58]} 6... Bd6 {[%clk 0:02:46.4]}
7. Bg3 {[%clk 0:02:57.4]} 7... O-O {[%clk 0:02:46.3]} 8. O-O {[%clk 0:02:57.2]}
8... c5 {[%clk 0:02:46.9]} 9. c3 {[%clk 0:02:56.5]} 9... Nc6 {[%clk 0:02:46.5]}
10. Qe2 {[%clk 0:02:56.4]} 10... Qc7 {[%clk 0:02:45.9]} 11. dxc5 {[%clk
0:02:56.6]} 11... bxc5 {[%clk 0:02:45.2]} 12. e4 {[%clk 0:02:57.1]} 12... Bxg3
{[%clk 0:02:45.6]} 13. hxg3 {[%clk 0:02:56.9]} 13... h6 {[%clk 0:02:42.3]} 14.
Rfe1 {[%clk 0:02:51.9]} 14... Rad8 {[%clk 0:02:35]} 15. e5 {[%clk 0:02:51.5]}
15... Ng4 {[%clk 0:02:32.2]} 16. Nf1 {[%clk 0:02:37.2]} 16... Rfe8 {[%clk
0:02:18.3]} 17. N1h2 {[%clk 0:02:35.1]} 17... Nxh2 {[%clk 0:02:17.5]} 18. Nxh2
{[%clk 0:02:26.3]} 18... c4 {[%clk 0:02:01.5]} 19. Bc2 {[%clk 0:02:23.7]} 19...
Ba6 {[%clk 0:01:50.3]} 20. Qh5 {[%clk 0:02:04.4]} 20... Qe7 {[%clk 0:01:43.1]}
21. f4 {[%clk 0:01:56.8]} 21... Qc5+ {[%clk 0:01:35.2]} 22. Kh1 {[%clk
0:01:55.2]} 22... Qf2 {[%clk 0:01:33.9]} 23. Re2 {[%clk 0:01:49.3]} 23... Qxg3
{[%clk 0:00:50.9]} 24. Rf1 {[%clk 0:01:48.4]} 24... d4 {[%clk 0:00:51.4]} 25.
Be4 {[%clk 0:01:26.9]} 25... d3 {[%clk 0:00:43.2]} 26. Ref2 {[%clk 0:01:23]}
26... d2 {[%clk 0:00:40.8]} 27. Bc2 {[%clk 0:00:52.6]} 27... Ne7 {[%clk
0:00:29.4]} 28. Ng4 {[%clk 0:00:39.4]} 28... Nf5 {[%clk 0:00:29.4]} 29. Bd1
{[%clk 0:00:24.9]} 29... Qxf2 {[%clk 0:00:21.5]} 30. Nxf2 {[%clk 0:00:18.5]}
30... Ng3+ {[%clk 0:00:20]} 31. Kh2 {[%clk 0:00:18.9]} 31... Nxh5 {[%clk
0:00:19.8]} 32. Bxh5 {[%clk 0:00:19.8]} 32... Bb7 {[%clk 0:00:18.6]} 33. Bd1
{[%clk 0:00:19.6]} 33... Bc6 {[%clk 0:00:17]} 34. Ng4 {[%clk 0:00:19.9]} 34...
Rb8 {[%clk 0:00:16.6]} 35. f5 {[%clk 0:00:20.3]} 35... exf5 {[%clk 0:00:16.1]}
36. Rxf5 {[%clk 0:00:20.1]} 36... Bd7 {[%clk 0:00:16.7]} 0-1

[Event "Late-Titled-Tuesday-Blitz-February-06-2024"]
[Site "Chess.com"]
[Date "2024.02.06"]
[Round "1"]
[White "djano"]
[Black "norwaytoadog"]
[Result "1-0"]
[WhiteElo "2610"]
[BlackElo "2255"]
[TimeControl "180+1"]
[EndTime "14:06:57 PST"]
[Termination "djano won by resignation"]

1. e4 {[%clk 0:03:00.9]} 1... c5 {[%clk 0:02:58.9]} 2. Nc3 {[%clk 0:03:00]} 2...
Nc6 {[%clk 0:02:58.5]} 3. Bb5 {[%clk 0:02:59.7]} 3... Nd4 {[%clk 0:02:57.3]} 4.
Nf3 {[%clk 0:02:59.7]} 4... e6 {[%clk 0:02:53.8]} 5. O-O {[%clk 0:02:59.5]} 5...
a6 {[%clk 0:02:52.4]} 6. Bd3 {[%clk 0:02:59.2]} 6... b5 {[%clk 0:02:50.6]} 7.
Nxd4 {[%clk 0:02:55.9]} 7... cxd4 {[%clk 0:02:50.1]} 8. Ne2 {[%clk 0:02:56.4]}
8... Qb6 {[%clk 0:02:49.7]} 9. b3 {[%clk 0:02:54.8]} 9... Bb7 {[%clk 0:02:48.5]}
10. Bb2 {[%clk 0:02:55]} 10... Bc5 {[%clk 0:02:39.1]} 11. b4 {[%clk 0:02:54.8]}
11... Bf8 {[%clk 0:02:21]} 12. Bxd4 {[%clk 0:02:54.8]} 12... Qc7 {[%clk
0:02:20.8]} 13. c3 {[%clk 0:02:44.5]} 13... e5 {[%clk 0:02:12.4]} 14. Be3 {[%clk
0:02:42.4]} 14... Nf6 {[%clk 0:02:12.5]} 15. Ng3 {[%clk 0:02:36.6]} 15... h5
{[%clk 0:02:08.1]} 16. f3 {[%clk 0:02:00.9]} 16... h4 {[%clk 0:02:00.8]} 17. Ne2
{[%clk 0:02:01]} 17... h3 {[%clk 0:01:49.8]} 18. g3 {[%clk 0:01:55.6]} 18... d5
{[%clk 0:01:38]} 19. exd5 {[%clk 0:01:56.5]} 19... Bxd5 {[%clk 0:01:32.9]} 20.
a4 {[%clk 0:01:51.3]} 20... Rb8 {[%clk 0:01:16.3]} 21. axb5 {[%clk 0:01:50.4]}
21... axb5 {[%clk 0:01:16.1]} 22. Ra7 {[%clk 0:01:51]} 22... Qc6 {[%clk
0:01:15.7]} 23. Nc1 {[%clk 0:01:35.1]} 23... Bd6 {[%clk 0:01:03.8]} 24. Nb3
{[%clk 0:01:29.9]} 24... O-O {[%clk 0:01:01.6]} 25. Na5 {[%clk 0:01:29.6]} 25...
Qc8 {[%clk 0:00:55.1]} 26. Qe2 {[%clk 0:01:28.9]} 26... Qe6 {[%clk 0:00:47.5]}
27. Ra6 {[%clk 0:01:25.4]} 27... Ra8 {[%clk 0:00:42.1]} 28. Rxa8 {[%clk
0:01:24.6]} 28... Bxa8 {[%clk 0:00:39.5]} 29. Bg5 {[%clk 0:01:19.7]} 29... Ng4
{[%clk 0:00:21.2]} 30. fxg4 {[%clk 0:01:09.9]} 30... Qd5 {[%clk 0:00:21.1]} 31.
Kf2 {[%clk 0:01:07.4]} 31... e4 {[%clk 0:00:18.7]} 32. Bxe4 {[%clk 0:00:59.8]}
32... Qxe4 {[%clk 0:00:15.7]} 33. Qxe4 {[%clk 0:01:00.7]} 33... Bxe4 {[%clk
0:00:15.9]} 34. Re1 {[%clk 0:00:57.6]} 34... Bd3 {[%clk 0:00:15.1]} 35. Be7
{[%clk 0:00:55.7]} 35... Re8 {[%clk 0:00:12.2]} 36. Bxd6 {[%clk 0:00:54.9]}
36... Rd8 {[%clk 0:00:10.9]} 37. Bf4 {[%clk 0:00:54.1]} 37... f6 {[%clk
0:00:10.5]} 38. Nc6 {[%clk 0:00:54.3]} 38... Ra8 {[%clk 0:00:09.3]} 39. Nd4
{[%clk 0:00:51.1]} 39... Ra2 {[%clk 0:00:08.5]} 40. Ke3 {[%clk 0:00:51.2]} 40...
g5 {[%clk 0:00:08.1]} 41. Kxd3 {[%clk 0:00:51]} 41... gxf4 {[%clk 0:00:08.2]}
42. gxf4 {[%clk 0:00:51.9]} 1-0

[Event "Late-Titled-Tuesday-Blitz-February-06-2024"]
[Site "Chess.com"]
[Date "2024.02.06"]
[Round "1"]
[White "abeljusto"]
[Black "FrankDux44"]
[Result "0-1"]
[WhiteElo "2080"]
[BlackElo "2555"]
[TimeControl "180+1"]
[EndTime "14:06:57 PST"]
[Termination "FrankDux44 won on time"]

1. d4 {[%clk 0:02:57.6]} 1... d6 {[%clk 0:02:59.9]} 2. Bf4 {[%clk 0:02:42.4]}
2... Nf6 {[%clk 0:02:57.6]} 3. Nc3 {[%clk 0:02:40.9]} 3... Bf5 {[%clk
0:02:38.3]} 4. f3 {[%clk 0:02:39.2]} 4... e6 {[%clk 0:02:30.7]} 5. e4 {[%clk
0:02:39.1]} 5... Bg6 {[%clk 0:02:31]} 6. Qd2 {[%clk 0:02:38.9]} 6... Be7 {[%clk
0:02:30.6]} 7. O-O-O {[%clk 0:02:37.9]} 7... c6 {[%clk 0:02:24]} 8. g4 {[%clk
0:02:36.5]} 8... h5 {[%clk 0:02:22.2]} 9. g5 {[%clk 0:02:23.4]} 9... Nfd7 {[%clk
0:02:21.4]} 10. h4 {[%clk 0:02:23.9]} 10... b5 {[%clk 0:02:17.2]} 11. Be3 {[%clk
0:02:05]} 11... O-O {[%clk 0:02:07.6]} 12. Nce2 {[%clk 0:01:53]} 12... d5 {[%clk
0:02:06.5]} 13. Bg2 {[%clk 0:01:50.4]} 13... Nb6 {[%clk 0:01:59.9]} 14. Nf4
{[%clk 0:01:41.2]} 14... Nc4 {[%clk 0:01:57.8]} 15. Qd3 {[%clk 0:01:39.9]} 15...
Na6 {[%clk 0:01:47.8]} 16. Nge2 {[%clk 0:01:27.1]} 16... Nb4 {[%clk 0:01:45]}
17. Qb3 {[%clk 0:01:14.6]} 17... a5 {[%clk 0:01:44.4]} 18. Nxg6 {[%clk 0:00:29]}
18... fxg6 {[%clk 0:01:42.9]} 19. Bd2 {[%clk 0:00:27.5]} 19... a4 {[%clk
0:01:40.5]} 20. Qxb4 {[%clk 0:00:27.6]} 20... Bxb4 {[%clk 0:01:38.7]} 21. Bxb4
{[%clk 0:00:27.5]} 21... Ne3 {[%clk 0:01:34.7]} 22. Rdg1 {[%clk 0:00:25.2]}
22... Nxg2 {[%clk 0:01:33.8]} 23. Rxg2 {[%clk 0:00:25]} 23... Rxf3 {[%clk
0:01:33.1]} 24. exd5 {[%clk 0:00:17]} 24... cxd5 {[%clk 0:01:28.8]} 25. Nc3
{[%clk 0:00:16.7]} 25... a3 {[%clk 0:01:26]} 26. bxa3 {[%clk 0:00:14]} 26... Qc7
{[%clk 0:01:17]} 27. Kb2 {[%clk 0:00:14.1]} 27... Rxa3 {[%clk 0:01:13.2]} 28.
Kxa3 {[%clk 0:00:11.3]} 28... Rxc3+ {[%clk 0:01:12.3]} 29. Kb2 {[%clk
0:00:11.3]} 29... Rc4 {[%clk 0:01:09.5]} 30. a3 {[%clk 0:00:10.1]} 30... Rxd4
{[%clk 0:01:06.4]} 31. Re1 {[%clk 0:00:09.5]} 31... e5 {[%clk 0:01:03.1]} 32.
Rge2 {[%clk 0:00:08.8]} 32... e4 {[%clk 0:01:02.9]} 33. Bc3 {[%clk 0:00:07.8]}
33... Rc4 {[%clk 0:01:03]} 34. Bb4 {[%clk 0:00:07.6]} 34... Kh7 {[%clk
0:00:59.4]} 35. c3 {[%clk 0:00:07.6]} 35... d4 {[%clk 0:00:56.5]} 36. cxd4
{[%clk 0:00:06.4]} 36... Rxd4 {[%clk 0:00:54.3]} 37. Rxe4 {[%clk 0:00:05.3]}
37... Qd7 {[%clk 0:00:38.9]} 38. Rxd4 {[%clk 0:00:04.3]} 38... Qxd4+ {[%clk
0:00:39.8]} 39. Kc2 {[%clk 0:00:03.4]} 39... Qxh4 {[%clk 0:00:40.4]} 0-1

[Event "Late-Titled-Tuesday-Blitz-February-06-2024"]
[Site "Chess.com"]
[Date "2024.02.06"]
[Round "1"]
[White "PawnEatingZombie"]
[Black "dennisodessa"]
[Result "0-1"]
[WhiteElo "2188"]
[BlackElo "2585"]
[TimeControl "180+1"]
[EndTime "14:07:00 PST"]
[Termination "dennisodessa won on time"]

1. e4 {[%clk 0:03:00.9]} 1... e6 {[%clk 0:02:59.9]} 2. d4 {[%clk 0:03:00.2]}
2... d5 {[%clk 0:02:56.1]} 3. exd5 {[%clk 0:03:01.1]} 3... exd5 {[%clk 0:02:57]}
4. Bf4 {[%clk 0:02:59.6]} 4... Nf6 {[%clk 0:02:55.5]} 5. Nc3 {[%clk 0:02:58.3]}
5... c6 {[%clk 0:02:53.9]} 6. Qd2 {[%clk 0:02:57.8]} 6... Bf5 {[%clk 0:02:54.1]}
7. O-O-O {[%clk 0:02:56.1]} 7... Be7 {[%clk 0:02:54.5]} 8. f3 {[%clk 0:02:54.7]}
8... h5 {[%clk 0:02:53.3]} 9. g3 {[%clk 0:02:52.9]} 9... Nbd7 {[%clk 0:02:53.3]}
10. Re1 {[%clk 0:02:47.7]} 10... Be6 {[%clk 0:02:51.1]} 11. Bh3 {[%clk
0:02:44.8]} 11... Bxh3 {[%clk 0:02:49.6]} 12. Nxh3 {[%clk 0:02:45.7]} 12... O-O
{[%clk 0:02:50]} 13. g4 {[%clk 0:02:37.9]} 13... hxg4 {[%clk 0:02:49.4]} 14.
fxg4 {[%clk 0:02:37.9]} 14... Nxg4 {[%clk 0:02:50]} 15. Rhg1 {[%clk 0:02:30.4]}
15... Ndf6 {[%clk 0:02:48.7]} 16. Ng5 {[%clk 0:02:25.5]} 16... Qd7 {[%clk
0:02:42.9]} 17. h3 {[%clk 0:02:20.6]} 17... Nh6 {[%clk 0:02:43]} 18. Ne6 {[%clk
0:01:45.4]} 18... fxe6 {[%clk 0:02:39.1]} 19. Bxh6 {[%clk 0:01:45.9]} 19... Rf7
{[%clk 0:02:39.8]} 20. Ne2 {[%clk 0:00:50.6]} 20... Ne4 {[%clk 0:02:35.5]} 21.
Qe3 {[%clk 0:00:43.6]} 21... Kh8 {[%clk 0:02:26.6]} 22. Bf4 {[%clk 0:00:41.1]}
22... Raf8 {[%clk 0:02:24.5]} 23. Be5 {[%clk 0:00:40.8]} 23... Bf6 {[%clk
0:02:22.4]} 24. Nf4 {[%clk 0:00:37.5]} 24... Kg8 {[%clk 0:02:14.8]} 25. Ng6
{[%clk 0:00:35.5]} 25... Re8 {[%clk 0:02:15.5]} 26. Qe2 {[%clk 0:00:26.5]} 26...
Bg5+ {[%clk 0:01:50.6]} 27. Kb1 {[%clk 0:00:22.3]} 27... Bh6 {[%clk 0:01:46.2]}
28. Qh5 {[%clk 0:00:20.6]} 28... Kh7 {[%clk 0:01:46.7]} 29. Rg4 {[%clk
0:00:11.3]} 29... Nf6 {[%clk 0:01:43.5]} 30. Bxf6 {[%clk 0:00:09.7]} 30... Rxf6
{[%clk 0:01:44.4]} 31. Ne5 {[%clk 0:00:08.4]} 31... Qe7 {[%clk 0:01:43.1]} 32.
Reg1 {[%clk 0:00:07.8]} 32... Ref8 {[%clk 0:01:42.2]} 33. Rxg7+ {[%clk
0:00:06.4]} 33... Qxg7 {[%clk 0:01:43.1]} 34. Rxg7+ {[%clk 0:00:06.4]} 34...
Kxg7 {[%clk 0:01:44]} 35. Qg4+ {[%clk 0:00:04.5]} 35... Kh7 {[%clk 0:01:43.7]}
36. b3 {[%clk 0:00:04.9]} 36... b5 {[%clk 0:01:34.3]} 37. a3 {[%clk 0:00:04.2]}
37... a5 {[%clk 0:01:32.7]} 38. Qh4 {[%clk 0:00:01.5]} 38... b4 {[%clk
0:01:29.3]} 39. Ka2 {[%clk 0:00:01.5]} 39... Kg8 {[%clk 0:01:18.6]} 40. Qg4+
{[%clk 0:00:01.5]} 40... Kh7 {[%clk 0:01:18.2]} 41. Qe2 {[%clk 0:00:02.4]} 41...
Rf2 {[%clk 0:01:16.9]} 42. Qd3+ {[%clk 0:00:03.3]} 42... Kh8 {[%clk 0:01:16.5]}
43. axb4 {[%clk 0:00:04]} 43... axb4 {[%clk 0:01:14.5]} 44. Kb2 {[%clk
0:00:04.7]} 44... R2f6 {[%clk 0:01:11.6]} 45. Ng6+ {[%clk 0:00:04.4]} 45... Kg7
{[%clk 0:01:12.2]} 46. Nxf8 {[%clk 0:00:03.6]} 46... Kxf8 {[%clk 0:01:12.5]} 47.
Qh7 {[%clk 0:00:02.5]} 47... Bg7 {[%clk 0:01:12.5]} 48. Qd3 {[%clk 0:00:01.6]}
48... Rf4 {[%clk 0:01:12.6]} 49. Qa6 {[%clk 0:00:02.1]} 49... Bxd4+ {[%clk
0:01:12]} 50. Kc1 {[%clk 0:00:01.9]} 50... Bc3 {[%clk 0:01:07.5]} 51. Kd1 {[%clk
0:00:02.5]} 51... Re4 {[%clk 0:01:06.9]} 0-1

[Event "Late-Titled-Tuesday-Blitz-February-06-2024"]
[Site "Chess.com"]
[Date "2024.02.06"]
[Round "1"]
[White "CarrotsandPizza"]
[Black "ChessLover0108"]
[Result "0-1"]
[WhiteElo "2518"]
[BlackElo "3019"]
[TimeControl "180+1"]
[EndTime "14:07:01 PST"]
[Termination "ChessLover0108 won on time"]

1. e4 {[%clk 0:03:00.9]} 1... d6 {[%clk 0:02:51.6]} 2. d4 {[%clk 0:02:59.7]}
2... Nf6 {[%clk 0:02:50.9]} 3. Nc3 {[%clk 0:02:59.2]} 3... g6 {[%clk 0:02:51.4]}
4. f4 {[%clk 0:02:58.5]} 4... Bg7 {[%clk 0:02:48.9]} 5. Bc4 {[%clk 0:02:58.2]}
5... O-O {[%clk 0:02:31.7]} 6. e5 {[%clk 0:02:58.2]} 6... Nfd7 {[%clk 0:02:21]}
7. e6 {[%clk 0:02:57.7]} 7... Nb6 {[%clk 0:02:18.7]} 8. exf7+ {[%clk 0:02:58.6]}
8... Kh8 {[%clk 0:02:18.5]} 9. Bb3 {[%clk 0:02:59.3]} 9... Nc6 {[%clk
0:02:12.1]} 10. Be3 {[%clk 0:02:59.8]} 10... Na5 {[%clk 0:02:06.8]} 11. Nf3
{[%clk 0:02:57.4]} 11... Bg4 {[%clk 0:01:58.2]} 12. Qe2 {[%clk 0:02:57.3]} 12...
Nxb3 {[%clk 0:01:46.4]} 13. axb3 {[%clk 0:02:58.2]} 13... a5 {[%clk 0:01:42.3]}
14. d5 {[%clk 0:02:30.1]} 14... c6 {[%clk 0:01:15.7]} 15. h3 {[%clk 0:02:16.2]}
15... Bxf3 {[%clk 0:01:09.7]} 16. Qxf3 {[%clk 0:02:17.1]} 16... Qc7 {[%clk
0:01:01.2]} 17. O-O {[%clk 0:01:58.4]} 17... Rxf7 {[%clk 0:00:55.5]} 18. Rad1
{[%clk 0:01:53.9]} 18... Raf8 {[%clk 0:00:49.7]} 19. Qe4 {[%clk 0:01:51.7]}
19... Bxc3 {[%clk 0:00:43.2]} 20. bxc3 {[%clk 0:01:49.9]} 20... Nxd5 {[%clk
0:00:43.7]} 21. Bd4+ {[%clk 0:01:48.8]} 21... Kg8 {[%clk 0:00:42]} 22. g3 {[%clk
0:01:39.6]} 22... Qd7 {[%clk 0:00:32.9]} 23. Kh2 {[%clk 0:01:39.3]} 23... e5
{[%clk 0:00:29.7]} 24. Be3 {[%clk 0:00:12.4]} 24... Nxc3 {[%clk 0:00:26.5]} 25.
Qc4 {[%clk 0:00:11.8]} 25... Nxd1 {[%clk 0:00:25.2]} 26. Rxd1 {[%clk 0:00:12.7]}
26... d5 {[%clk 0:00:24.3]} 27. Qd3 {[%clk 0:00:09.6]} 27... exf4 {[%clk
0:00:23.5]} 28. Bxf4 {[%clk 0:00:09.7]} 28... g5 {[%clk 0:00:21.1]} 29. Be5
{[%clk 0:00:01.4]} 29... Rf2+ {[%clk 0:00:19.6]} 30. Kg1 {[%clk 0:00:02.3]}
30... Qxh3 {[%clk 0:00:19.6]} 0-1

[Event "Late-Titled-Tuesday-Blitz-February-06-2024"]
[Site "Chess.com"]
[Date "2024.02.06"]
[Round "1"]
[White "Rutricks"]
[Black "Laico"]
[Result "1-0"]
[WhiteElo "2706"]
[BlackElo "2377"]
[TimeControl "180+1"]
[EndTime "14:07:01 PST"]
[Termination "Rutricks won on time"]

1. b3 {[%clk 0:02:59.2]} 1... d5 {[%clk 0:02:52.4]} 2. Bb2 {[%clk 0:03:00.1]}
2... Nf6 {[%clk 0:02:52.8]} 3. g3 {[%clk 0:02:59.2]} 3... c5 {[%clk 0:02:50.3]}
4. Bg2 {[%clk 0:02:58.2]} 4... Nc6 {[%clk 0:02:51.2]} 5. Nf3 {[%clk 0:02:57.4]}
5... Bg4 {[%clk 0:02:48.4]} 6. O-O {[%clk 0:02:56]} 6... Qd7 {[%clk 0:02:47.3]}
7. d4 {[%clk 0:02:56]} 7... Bh3 {[%clk 0:02:44]} 8. Ne5 {[%clk 0:02:23.1]} 8...
Nxe5 {[%clk 0:02:41.3]} 9. dxe5 {[%clk 0:02:24]} 9... Bxg2 {[%clk 0:02:21.9]}
10. Kxg2 {[%clk 0:02:24.9]} 10... Ng4 {[%clk 0:02:06]} 11. h3 {[%clk 0:02:23.2]}
11... Nh6 {[%clk 0:02:03]} 12. e4 {[%clk 0:02:23.2]} 12... dxe4 {[%clk
0:01:53.7]} 13. Nc3 {[%clk 0:02:23.5]} 13... Qc6 {[%clk 0:01:47.9]} 14. Qd5
{[%clk 0:02:22.1]} 14... Qxd5 {[%clk 0:01:43.1]} 15. Nxd5 {[%clk 0:02:23]} 15...
O-O-O {[%clk 0:01:43.4]} 16. Rad1 {[%clk 0:02:22.1]} 16... Nf5 {[%clk
0:01:25.8]} 17. g4 {[%clk 0:02:03]} 17... e6 {[%clk 0:01:11.4]} 18. Nc3 {[%clk
0:01:58.5]} 18... Nd4 {[%clk 0:01:10]} 19. Nxe4 {[%clk 0:01:50.9]} 19... Nxc2
{[%clk 0:00:58.2]} 20. Ng5 {[%clk 0:01:26.7]} 20... Rxd1 {[%clk 0:00:44.6]} 21.
Rxd1 {[%clk 0:01:27.6]} 21... Be7 {[%clk 0:00:41]} 22. Nxf7 {[%clk 0:01:27.3]}
22... Rf8 {[%clk 0:00:37.5]} 23. Nd6+ {[%clk 0:01:27.8]} 23... Kc7 {[%clk
0:00:37.6]} 24. Rc1 {[%clk 0:01:22.9]} 24... Nb4 {[%clk 0:00:28]} 25. Rxc5+
{[%clk 0:01:23.3]} 25... Nc6 {[%clk 0:00:24.6]} 26. Rc4 {[%clk 0:00:44.4]} 26...
Rd8 {[%clk 0:00:19.3]} 27. Ba3 {[%clk 0:00:42.4]} 27... a6 {[%clk 0:00:11.9]}
28. f4 {[%clk 0:00:36]} 28... b5 {[%clk 0:00:05.9]} 29. Rc2 {[%clk 0:00:35.8]}
29... Kb6 {[%clk 0:00:05.7]} 30. Bc5+ {[%clk 0:00:35.9]} 30... Kc7 {[%clk
0:00:05.1]} 31. Kf3 {[%clk 0:00:31.9]} 31... Rd7 {[%clk 0:00:04.9]} 32. Ke4
{[%clk 0:00:32.3]} 32... Bd8 {[%clk 0:00:02.3]} 33. Ba7 {[%clk 0:00:23.5]} 1-0